fUST/lending_fUST_20251206
["ID","MTS","AMOUNT","RATE_DAILY","PERIOD"]
[396422593,1764964277729,-1775.43,0.0001726,2]
[396422594,1764964277738,-500.0,0.0001726,2]
[396422595,1764964277747,-500.0,0.0001726,2]
[396422596,1764964277757,-500.0,0.0001726,2]
[396422597,1764964277765,-555.16446391,0.0001726,2]
[396422598,1764964277775,-500.0,0.0001726,2]
[396422599,1764964277784,-796.25,0.0001726,2]
[396422600,1764964277794,-500.0,0.0001726,2]
[396422601,1764964277803,-500.0,0.0001726,2]
[396422602,1764964277812,-4147.96,0.0001726,2]
[396422603,1764964277822,-500.0,0.0001726,2]
[396422604,1764964277831,-500.0,0.0001726,2]
[396422605,1764964277840,-677.16,0.0001726,2]
[396422606,1764964277850,-500.0,0.0001726,2]
[396422607,1764964277858,-3508.67,0.0001726,2]
[396422608,1764964277867,-3856.98,0.0001726,2]
[396422609,1764964277876,-1405.37,0.0001726,2]
[396422610,1764964277887,-500.0,0.0001726,2]
[396422611,1764964277897,-500.0,0.0001726,2]
[396422612,1764964277906,-8546.16,0.0001726,2]
[396422613,1764964277915,-595.52,0.0001726,2]
[396422614,1764964277925,-2012.27,0.0001726,2]
[396422615,1764964277934,-158.37,0.0001726,2]
[396422616,1764964277943,-760.14,0.0001726,2]
[396422617,1764964277953,-500.0,0.0001726,2]
[396422618,1764964277963,-869.37,0.0001726,2]
[396422619,1764964277972,-2862.43,0.0001726,2]
[396422620,1764964277981,-500.0,0.0001726,2]
[396422621,1764964277990,-500.0,0.0001726,2]
[396422622,1764964278002,-1260.61,0.0001726,2]
[396422623,1764964278011,-27168.59,0.0001726,2]
[396422624,1764964278020,-2573.74,0.0001726,2]
[396422625,1764964278029,-500.0,0.0001726,2]
[396422626,1764964278039,-500.0,0.0001726,2]
[396422627,1764964278048,-1519.74,0.0001726,2]
[396422628,1764964278058,-3739.24,0.0001726,2]
[396422629,1764964278068,-837.97,0.0001726,2]
[396422630,1764964278078,-2210.97,0.0001726,2]
[396422631,1764964278089,-879.68,0.0001726,2]
[396422632,1764964278100,-934.83,0.0001726,2]
[396422633,1764964278110,-1534.0,0.0001726,2]
[396422634,1764964278119,-613.38,0.0001726,2]
[396422635,1764964278129,-1145.34,0.0001726,2]
[396422636,1764964278138,-7737.29,0.0001726,2]
[396422637,1764964278147,-2245.52,0.0001726,2]
[396422638,1764964278156,-2897.13,0.0001726,2]
[396422639,1764964278166,-500.0,0.0001726,2]
[396422640,1764964278175,-3989.26,0.0001726,2]
[396422641,1764964278185,-1590.89,0.0001726,2]
[396422642,1764964278194,-4880.82,0.0001726,2]
[396422643,1764964278205,-500.0,0.0001726,2]
[396422644,1764964278215,-500.0,0.0001726,2]
[396422645,1764964278225,-2037.18,0.0001726,2]
[396422646,1764964278234,-500.0,0.0001726,2]
[396422647,1764964278243,-1939.29,0.0001726,2]
[396422648,1764964278253,-500.0,0.0001726,2]
[396422649,1764964278262,-500.0,0.0001726,2]
[396422650,1764964278271,-603.68,0.0001726,2]
[396422651,1764964278280,-500.0,0.0001726,2]
[396422652,1764964278290,-586.39,0.0001726,2]
[396422653,1764964278299,-500.0,0.0001726,2]
[396422654,1764964278308,-3745.52,0.0001726,2]
[396422655,1764964278318,-1761.7,0.0001726,2]
[396422656,1764964278327,-500.0,0.0001726,2]
[396422657,1764964278336,-500.0,0.0001726,2]
[396422658,1764964278346,-500.0,0.0001726,2]
[396422659,1764964278355,-500.0,0.0001726,2]
[396422660,1764964278364,-1154.72,0.0001726,2]
[396422661,1764964278373,-8082.89,0.0001726,2]
[396422662,1764964278382,-500.0,0.0001726,2]
[396422663,1764964278392,-808.12,0.0001726,2]
[396422664,1764964278401,-1316.55,0.0001726,2]
[396422665,1764964278411,-1061.67,0.0001726,2]
[396422666,1764964278420,-1179.67,0.0001726,2]
[396422667,1764964278429,-500.0,0.0001726,2]
[396422668,1764964278438,-500.0,0.0001726,2]
[396422669,1764964278448,-500.0,0.0001726,2]
[396422670,1764964278458,-548.83,0.0001726,2]
[396422671,1764964278467,-500.0,0.0001726,2]
[396422672,1764964278476,-2735.13,0.0001726,2]
[396422673,1764964278485,-2878.01,0.0001726,2]
[396422674,1764964278494,-500.0,0.0001726,2]
[396422675,1764964278504,-500.0,0.0001726,2]
[396422676,1764964278514,-500.0,0.0001726,2]
[396422677,1764964278525,-6762.23,0.0001726,2]
[396422678,1764964278534,-1977.79,0.0001726,2]
[396422679,1764964278544,-500.0,0.0001726,2]
[396422680,1764964278553,-500.0,0.0001726,2]
[396422681,1764964278562,-500.0,0.0001726,2]
[396422682,1764964278571,-512.63,0.0001726,2]
[396422683,1764964278581,-531.05,0.0001726,2]
[396422684,1764964278590,-500.0,0.0001726,2]
[396422685,1764964278599,-690.27,0.0001726,2]
[396422686,1764964278608,-588.28,0.0001726,2]
[396422687,1764964278618,-258.8258819,0.0001726,2]
[396422688,1764964278628,-500.0,0.0001726,2]
[396422689,1764964278637,-500.0,0.0001726,2]
[396422690,1764964278646,-500.0,0.0001726,2]
[396422691,1764964278655,-1011.28,0.0001726,2]
[396422692,1764964278664,-6262.41,0.0001726,2]
[396422693,1764964278673,-500.0,0.0001726,2]
[396422694,1764964278683,-2046.2,0.0001726,2]
[396422695,1764964278693,-500.0,0.0001726,2]
[396422696,1764964278702,-2730.7,0.0001726,2]
[396422697,1764964278711,-776.59,0.0001726,2]
[396422698,1764964278721,-632.99,0.0001726,2]
[396422699,1764964278730,-500.0,0.0001726,2]
[396422700,1764964278740,-9293.72,0.0001726,2]
[396422701,1764964278749,-500.0,0.0001726,2]
[396422702,1764964278759,-500.0,0.0001726,2]
[396422703,1764964278768,-1523.9,0.0001726,2]
[396422704,1764964278778,-500.0,0.0001726,2]
[396422705,1764964278787,-2206.65,0.0001726,2]
[396422706,1764964278796,-1216.27,0.0001726,2]
[396422707,1764964278805,-890.47,0.0001726,2]
[396422708,1764964278814,-1517.87,0.0001726,2]
[396422709,1764964278823,-500.0,0.0001726,2]
[396422710,1764964278832,-500.0,0.0001726,2]
[396422711,1764964278842,-678.08,0.0001726,2]
[396422712,1764964278851,-12607.12,0.0001726,2]
[396422713,1764964278860,-1261.52,0.0001726,2]
[396422714,1764964278869,-3411.98,0.0001726,2]
[396422715,1764964278878,-500.0,0.0001726,2]
[396422716,1764964278887,-8433.96,0.0001726,2]
[396422717,1764964278896,-500.0,0.0001726,2]
[396422718,1764964278905,-4594.16,0.0001726,2]
[396422719,1764964278914,-500.0,0.0001726,2]
[396422720,1764964278923,-639.2,0.0001726,2]
[396422721,1764964278932,-601.94,0.0001726,2]
[396422722,1764964278941,-500.0,0.0001726,2]
[396422723,1764964278951,-557.9,0.0001726,2]
[396422724,1764964278960,-768.56,0.0001726,2]
[396422725,1764964278969,-564.07,0.0001726,2]
[396422726,1764964278978,-2955.98,0.0001726,2]
[396422727,1764964278988,-1537.53,0.0001726,2]
[396422728,1764964279002,-1822.27,0.0001726,2]
[396422729,1764964279014,-500.0,0.0001726,2]
[396422730,1764964279023,-500.0,0.0001726,2]
[396422731,1764964279032,-500.0,0.0001726,2]
[396422732,1764964279042,-1145.09,0.0001726,2]
[396422733,1764964279051,-1807.2,0.0001726,2]
[396422734,1764964279061,-3671.84,0.0001726,2]
[396422735,1764964279069,-500.0,0.0001726,2]
[396422736,1764964279079,-1517.42,0.0001726,2]
[396422737,1764964279089,-1021.51,0.0001726,2]
[396422738,1764964279098,-500.0,0.0001726,2]
[396422739,1764964279107,-500.0,0.0001726,2]
[396422740,1764964279115,-1718.3,0.0001726,2]
[396422741,1764964279124,-15606.7,0.0001726,2]
[396422742,1764964279133,-500.0,0.0001726,2]
[396422743,1764964279142,-7505.89,0.0001726,2]
[396422744,1764964279152,-629.93,0.0001726,2]
[396422745,1764964279161,-500.0,0.0001726,2]
[396422746,1764964279170,-500.0,0.0001726,2]
[396422747,1764964279180,-500.0,0.0001726,2]
[396422748,1764964279191,-4537.01,0.0001726,2]
[396422749,1764964279201,-500.0,0.0001726,2]
[396422750,1764964279211,-1340.59,0.0001726,2]
[396422751,1764964279221,-1160.08,0.0001726,2]
[396422752,1764964279230,-500.0,0.0001726,2]
[396422753,1764964279239,-6149.82,0.0001726,2]
[396422754,1764964279248,-2978.24,0.0001726,2]
[396422755,1764964279258,-500.0,0.0001726,2]
[396422756,1764964279269,-566.43,0.0001726,2]
[396422757,1764964279279,-500.0,0.0001726,2]
[396422758,1764964279289,-1483.55,0.0001726,2]
[396422759,1764964279299,-2769.97,0.0001726,2]
[396422760,1764964279309,-1249.37,0.0001726,2]
[396422761,1764964279319,-500.0,0.0001726,2]
[396422762,1764964279327,-500.0,0.0001726,2]
[396422763,1764964279337,-603.32,0.0001726,2]
[396422764,1764964279346,-500.0,0.0001726,2]
[396422765,1764964279355,-500.0,0.0001726,2]
[396422766,1764964279364,-1573.31,0.0001726,2]
[396422767,1764964279373,-2626.61,0.0001726,2]
[396422768,1764964279382,-500.0,0.0001726,2]
[396422769,1764964279391,-5057.213907,0.0001726,2]
[396422770,1764964279400,-500.0,0.0001726,2]
[396422771,1764964279409,-4802.09,0.0001726,2]
[396422772,1764964279418,-500.0,0.0001726,2]
[396422773,1764964279428,-500.0,0.0001726,2]
[396422774,1764964279437,-999.44,0.0001726,2]
[396422775,1764964279446,-1503.75,0.0001726,2]
[396422776,1764964279458,-19450.21,0.0001726,2]
[396422777,1764964279466,-500.0,0.0001726,2]
[396422778,1764964279475,-500.0,0.0001726,2]
[396422779,1764964279485,-1075.02,0.0001726,2]
[396422780,1764964279495,-500.0,0.0001726,2]
[396422781,1764964279505,-500.0,0.0001726,2]
[396422782,1764964279515,-1106.6,0.0001726,2]
[396422783,1764964279525,-500.0,0.0001726,2]
[396422784,1764964279534,-220.81974146,0.0001726,2]
[396422785,1764964279545,-840.72,0.0001726,2]
[396422786,1764964279554,-500.0,0.0001726,2]
[396422787,1764964279564,-1613.52,0.0001726,2]
[396422788,1764964279573,-500.0,0.0001726,2]
[396422789,1764964279583,-500.0,0.0001726,2]
[396422790,1764964279592,-518.4,0.0001726,2]
[396422791,1764964279601,-500.0,0.0001726,2]
[396422792,1764964279611,-3055.31,0.0001726,2]
[396422793,1764964279621,-994.67,0.0001726,2]
[396422794,1764964279630,-500.0,0.0001726,2]
[396422795,1764964279639,-500.0,0.0001726,2]
[396422796,1764964279649,-994.61,0.0001726,2]
[396422797,1764964279659,-5779.12,0.0001726,2]
[396422798,1764964279668,-500.0,0.0001726,2]
[396422799,1764964279677,-541.54,0.0001726,2]
[396422800,1764964279687,-500.0,0.0001726,2]
[396422801,1764964279697,-2703.83,0.0001726,2]
[396422802,1764964279707,-13490.98,0.0001726,2]
[396422803,1764964279716,-723.64,0.0001726,2]
[396422804,1764964279726,-2375.57,0.0001726,2]
[396422805,1764964279736,-500.0,0.0001726,2]
[396422806,1764964279746,-500.0,0.0001726,2]
[396422807,1764964279755,-578.53645744,0.0001726,2]
[396422808,1764964279765,-1855.42,0.0001726,2]
[396422809,1764964279774,-1108.58,0.0001726,2]
[396422810,1764964279784,-981.84,0.0001726,2]
[396422811,1764964279793,-500.0,0.0001726,2]
[396422812,1764964279803,-500.0,0.0001726,2]
[396422813,1764964279813,-500.0,0.0001726,2]
[396422814,1764964279822,-8333.33,0.0001726,2]
[396422815,1764964279831,-505.07,0.0001726,2]
[396422816,1764964279841,-3168.21,0.0001726,2]
[396422817,1764964279850,-8522.94,0.0001726,2]
[396422818,1764964279860,-500.0,0.0001726,2]
[396422819,1764964279871,-2974.3,0.0001726,2]
[396422820,1764964279880,-882.76,0.0001726,2]
[396422821,1764964279890,-500.0,0.0001726,2]
[396422822,1764964279900,-500.0,0.0001726,2]
[396422823,1764964279910,-773.39,0.0001726,2]
[396422824,1764964279919,-500.0,0.0001726,2]
[396422825,1764964279929,-500.0,0.0001726,2]
[396422826,1764964279938,-500.0,0.0001726,2]
[396422827,1764964279948,-500.0,0.0001726,2]
[396422828,1764964279958,-1466.62,0.0001726,2]
[396422829,1764964279967,-500.0,0.0001726,2]
[396422830,1764964279977,-500.0,0.0001726,2]
[396422831,1764964279986,-169.728144,0.0001726,2]
[396422832,1764964279996,-1900.64,0.0001726,2]
[396422833,1764964280009,-5166.32,0.0001726,2]
[396422834,1764964280018,-500.0,0.0001726,2]
[396422835,1764964280028,-559.78,0.0001726,2]
[396422836,1764964280038,-500.0,0.0001726,2]
[396422837,1764964280047,-500.0,0.0001726,2]
[396422838,1764964280057,-579.43,0.0001726,2]
[396422839,1764964280068,-275.66864349,0.0001726,2]
[396422840,1764964280080,-1126.56,0.0001726,2]
[396422841,1764964280089,-531.72,0.0001726,2]
[396422842,1764964280099,-500.0,0.0001726,2]
[396422843,1764964280108,-1357.94,0.0001726,2]
[396422844,1764964280119,-7493.2,0.0001726,2]
[396422845,1764964280129,-500.0,0.0001726,2]
[396422846,1764964280139,-500.0,0.0001726,2]
[396422847,1764964280148,-2140.67,0.0001726,2]
[396422848,1764964280157,-504.84,0.0001726,2]
[396422849,1764964280167,-500.0,0.0001726,2]
[396422850,1764964280176,-1456.29,0.0001726,2]
[396422851,1764964280185,-180.74580333,0.0001726,2]
[396422852,1764964280194,-1852.77,0.0001726,2]
[396422853,1764964280204,-5290.3,0.0001726,2]
[396422854,1764964280214,-500.0,0.0001726,2]
[396422855,1764964280223,-18021.5,0.0001726,2]
[396422856,1764964280232,-5946.49,0.0001726,2]
[396422857,1764964280242,-500.0,0.0001726,2]
[396422858,1764964280251,-1141.14,0.0001726,2]
[396422859,1764964280261,-500.0,0.0001726,2]
[396422860,1764964280270,-5755.4,0.0001726,2]
[396422861,1764964280279,-500.0,0.0001726,2]
[396422862,1764964280289,-899.33,0.0001726,2]
[396422863,1764964280299,-500.0,0.0001726,2]
[396422864,1764964280309,-500.0,0.0001726,2]
[396422865,1764964280318,-500.0,0.0001726,2]
[396422866,1764964280328,-500.0,0.0001726,2]
[396422867,1764964280337,-1193.75,0.0001726,2]
[396422868,1764964280347,-500.0,0.0001726,2]
[396422869,1764964280356,-500.0,0.0001726,2]
[396422870,1764964280366,-500.0,0.0001726,2]
[396422871,1764964280375,-18224.67,0.0001726,2]
[396422872,1764964280384,-2555.22,0.0001726,2]
[396422873,1764964280394,-500.0,0.0001726,2]
[396422874,1764964280403,-500.0,0.0001726,2]
[396422875,1764964280412,-15992.22,0.0001726,2]
[396422876,1764964280421,-500.0,0.0001726,2]
[396422877,1764964280431,-500.0,0.0001726,2]
[396422878,1764964280440,-2246.86,0.0001726,2]
[396422879,1764964280450,-500.0,0.0001726,2]
[396422880,1764964280460,-500.0,0.0001726,2]
[396422881,1764964280470,-500.0,0.0001726,2]
[396422882,1764964280479,-359.71164266,0.0001726,2]
[396422883,1764964280490,-1396.97,0.0001726,2]
[396422884,1764964280500,-699.92,0.0001726,2]
[396422885,1764964280510,-1327.48,0.0001726,2]
[396422886,1764964280520,-3223.39,0.0001726,2]
[396422887,1764964280530,-1347.5,0.0001726,2]
[396422888,1764964280539,-352.66862441,0.0001726,2]
[396422889,1764964280548,-2513.49,0.0001726,2]
[396422890,1764964280558,-667.1,0.0001726,2]
[396422891,1764964280568,-500.0,0.0001726,2]
[396422892,1764964280578,-500.0,0.0001726,2]
[396422893,1764964280588,-500.0,0.0001726,2]
[396422894,1764964280597,-2175.03,0.0001726,2]
[396422895,1764964280606,-40156.73,0.0001726,2]
[396422896,1764964280616,-906.92,0.0001726,2]
[396422897,1764964280626,-500.0,0.0001726,2]
[396422898,1764964280636,-10167.34,0.0001726,2]
[396422899,1764964280645,-3602.82,0.0001726,2]
[396422900,1764964280655,-690.39,0.0001726,2]
[396422901,1764964280664,-871.12,0.0001726,2]
[396422902,1764964280674,-570.25,0.0001726,2]
[396422903,1764964280683,-3182.83,0.0001726,2]
[396422904,1764964280693,-500.0,0.0001726,2]
[396422905,1764964280704,-500.0,0.0001726,2]
[396422906,1764964280713,-500.0,0.0001726,2]
[396422907,1764964280723,-2410.62,0.0001726,2]
[396422908,1764964280733,-500.0,0.0001726,2]
[396422909,1764964280743,-500.0,0.0001726,2]
[396422910,1764964280753,-500.0,0.0001726,2]
[396422911,1764964280763,-2260.75,0.0001726,2]
[396422912,1764964280772,-1031.43,0.0001726,2]
[396422913,1764964280782,-500.0,0.0001726,2]
[396422914,1764964280792,-500.0,0.0001726,2]
[396422915,1764964280802,-1240.63,0.0001726,2]
[396422916,1764964280813,-500.0,0.0001726,2]
[396422917,1764964280822,-3147.39,0.0001726,2]
[396422918,1764964280832,-500.0,0.0001726,2]
[396422919,1764964280841,-535.52,0.0001726,2]
[396422920,1764964280854,-3754.05,0.0001726,2]
[396422921,1764964280863,-2393.17,0.0001726,2]
[396422922,1764964280878,-500.0,0.0001726,2]
[396422923,1764964280887,-640.85,0.0001726,2]
[396422924,1764964280897,-700.33,0.0001726,2]
[396422925,1764964280906,-2634.96,0.0001726,2]
[396422926,1764964280916,-500.0,0.0001726,2]
[396422927,1764964280925,-3889.17,0.0001726,2]
[396422928,1764964280934,-500.0,0.0001726,2]
[396422929,1764964280944,-500.0,0.0001726,2]
[396422930,1764964280954,-500.0,0.0001726,2]
[396422931,1764964280963,-786.42,0.0001726,2]
[396422932,1764964280973,-500.0,0.0001726,2]
[396422933,1764964280983,-1453.14,0.0001726,2]
[396422934,1764964280992,-500.0,0.0001726,2]
[396422935,1764964281005,-2259.44,0.0001726,2]
[396422936,1764964281015,-642.0,0.0001726,2]
[396422937,1764964281024,-500.0,0.0001726,2]
[396422938,1764964281034,-500.0,0.0001726,2]
[396422939,1764964281045,-7930.82,0.0001726,2]
[396422940,1764964281054,-500.0,0.0001726,2]
[396422941,1764964281064,-864.0,0.00017401,2]
[396422942,1764964281075,-762.9964843,0.00017426,2]
[396422943,1764964281086,-1148.15278364,0.0001743,2]
[396422944,1764964281095,-2982.60894464,0.00017523,2]
[396422945,1764964281106,-500.0,0.00017534,2]
[396422946,1764964281115,-500.0,0.00017534,2]
[396422947,1764964281125,-533.1448148,0.00017534,2]
[396422948,1764964281135,-500.0,0.00017534,2]
[396422949,1764964281144,-500.0,0.00017534,2]
[396422950,1764964281153,-500.0,0.00017534,2]
[396422951,1764964281163,-500.0,0.00017534,2]
[396422952,1764964281173,-500.0,0.00017534,2]
[396422953,1764964281182,-500.0,0.00017534,2]
[396422954,1764964281191,-500.0,0.00017534,2]
[396422955,1764964281200,-500.0,0.00017534,2]
[396422956,1764964281210,-674.84,0.00017534,2]
[396422957,1764964281220,-229.13457002,0.00017534,2]
[396422958,1764964281230,-759.28,0.00017534,2]
[396422959,1764964281240,-500.0,0.00017534,2]
[396422960,1764964281250,-821.01,0.00017534,2]
[396422961,1764964281260,-3248.83,0.00017534,2]
[396422962,1764964281270,-500.0,0.00017534,2]
[396422963,1764964281279,-500.0,0.00017534,2]
[396422964,1764964281289,-766.62,0.00017534,2]
[396422965,1764964281299,-596.14,0.00017534,2]
[396422966,1764964281309,-677.48,0.00017534,2]
[396422967,1764964281318,-500.0,0.00017534,2]
[396422968,1764964281328,-710.03,0.00017534,2]
[396422969,1764964281338,-500.0,0.00017534,2]
[396422970,1764964281347,-512.74222999,0.00017534,2]
[396422971,1764964281357,-978.11,0.00017534,2]
[396422972,1764964281366,-500.0,0.00017534,2]
[396422973,1764964281375,-950.77,0.00017534,2]
[396422974,1764964281385,-2195.96,0.00017534,2]
[396422975,1764964281394,-500.0,0.00017534,2]
[396422976,1764964281403,-500.0,0.00017534,2]
[396422977,1764964281413,-831.34,0.00017534,2]
[396422978,1764964281422,-500.0,0.00017534,2]
[396422979,1764964281432,-609.85,0.00017534,2]
[396422980,1764964281442,-500.0,0.00017534,2]
[396422981,1764964281451,-1164.68,0.00017534,2]
[396422982,1764964281461,-500.0,0.00017534,2]
[396422983,1764964281470,-500.0,0.00017534,2]
[396422984,1764964281480,-768.78,0.00017534,2]
[396422985,1764964281489,-609.15,0.00017534,2]
[396422986,1764964281499,-500.0,0.00017534,2]
[396422987,1764964281509,-1330.04,0.00017534,2]
[396422988,1764964281519,-913.97,0.00017534,2]
[396422989,1764964281528,-500.0,0.00017534,2]
[396422990,1764964281537,-500.0,0.00017534,2]
[396422991,1764964281547,-500.0,0.00017534,2]
[396422992,1764964281556,-500.0,0.00017534,2]
[396422993,1764964281566,-249.57002796,0.00017534,2]
[396422994,1764964281576,-738.1,0.00017534,2]
[396422995,1764964281586,-500.0,0.00017534,2]
[396422996,1764964281595,-1071.4,0.00017534,2]
[396422997,1764964281605,-1543.99,0.00017534,2]
[396422998,1764964281614,-500.0,0.00017534,2]
[396422999,1764964281623,-1862.41,0.00017534,2]
[396423000,1764964281881,-500.0,0.00017534,2]
[396423001,1764964281899,-500.0,0.00017534,2]
[396423002,1764964281913,-500.0,0.00017534,2]
[396423003,1764964281924,-939.06,0.00017534,2]
[396423004,1764964281934,-1733.31,0.00017534,2]
[396423005,1764964281945,-2719.16,0.00017534,2]
[396423006,1764964281955,-826.15,0.00017534,2]
[396423007,1764964281965,-179.03065687,0.00017534,2]
[396423008,1764964281976,-500.0,0.00017534,2]
[396423009,1764964281986,-500.0,0.00017534,2]
[396423010,1764964281997,-1078.39,0.00017534,2]
[396423011,1764964282011,-708.58,0.00017534,2]
[396423012,1764964282022,-1771.78,0.00017534,2]
[396423013,1764964282032,-500.0,0.00017534,2]
[396423014,1764964282043,-500.0,0.00017534,2]
[396423015,1764964282053,-500.0,0.00017534,2]
[396423016,1764964282063,-444.86288478,0.00017534,2]
[396423017,1764964282073,-500.0,0.00017534,2]
[396423018,1764964282085,-500.0,0.00017534,2]
[396423019,1764964282095,-500.0,0.00017534,2]
[396423020,1764964282105,-672.42,0.00017534,2]
[396423021,1764964282115,-874.07,0.00017534,2]
[396423022,1764964282125,-500.0,0.00017534,2]
[396423023,1764964282136,-500.0,0.00017534,2]
[396423024,1764964282146,-611.92,0.00017534,2]
[396423025,1764964282156,-2821.54,0.00017534,2]
[396423026,1764964282166,-500.0,0.00017534,2]
[396423027,1764964282177,-500.0,0.00017534,2]
[396423028,1764964282187,-500.0,0.00017534,2]
[396423029,1764964282197,-500.0,0.00017534,2]
[396423030,1764964282209,-500.0,0.00017534,2]
[396423031,1764964282219,-636.11,0.00017534,2]
[396423032,1764964282229,-971.51,0.00017534,2]
[396423033,1764964282239,-906.08,0.00017534,2]
[396423034,1764964282249,-500.0,0.00017534,2]
[396423035,1764964282259,-571.85,0.00017534,2]
[396423036,1764964282269,-519.70705303,0.00017534,2]
[396423037,1764964282278,-500.0,0.00017534,2]
[396423038,1764964282288,-318.7099943,0.00017534,2]
[396423039,1764964282298,-500.0,0.00017534,2]
[396423040,1764964282308,-1069.86,0.00017534,2]
[396423041,1764964282319,-500.0,0.00017534,2]
[396423042,1764964282328,-1462.76,0.00017534,2]
[396423043,1764964282338,-502.82,0.00017534,2]
[396423044,1764964282348,-500.0,0.00017534,2]
[396423045,1764964282358,-500.0,0.00017534,2]
[396423046,1764964282369,-248.7559525,0.00017534,2]
[396423047,1764964282379,-2534.3,0.00017534,2]
[396423048,1764964282389,-500.0,0.00017534,2]
[396423049,1764964282399,-500.0,0.00017534,2]
[396423050,1764964282409,-565.15048254,0.00017534,2]
[396423051,1764964282419,-500.0,0.00017534,2]
[396423052,1764964282429,-500.0,0.00017534,2]
[396423053,1764964282438,-647.83,0.00017534,2]
[396423054,1764964282448,-1092.74,0.00017534,2]
[396423055,1764964282459,-500.0,0.00017534,2]
[396423056,1764964282469,-500.0,0.00017534,2]
[396423057,1764964282478,-500.0,0.00017534,2]
[396423058,1764964282489,-500.0,0.00017534,2]
[396423059,1764964282499,-500.0,0.00017534,2]
[396423060,1764964282508,-1405.79,0.00017534,2]
[396423061,1764964282518,-1078.91,0.00017534,2]
[396423062,1764964282528,-500.0,0.00017534,2]
[396423063,1764964282538,-1311.8,0.00017534,2]
[396423064,1764964282547,-500.0,0.00017534,2]
[396423065,1764964282557,-1734.17,0.00017534,2]
[396423066,1764964282566,-698.12,0.00017534,2]
[396423067,1764964282576,-1866.07,0.00017534,2]
[396423068,1764964282586,-500.0,0.00017534,2]
[396423069,1764964282596,-500.0,0.00017534,2]
[396423070,1764964282605,-530.33610565,0.00017534,2]
[396423071,1764964282615,-500.0,0.00017534,2]
[396423072,1764964282625,-1534.72,0.00017534,2]
[396423073,1764964282635,-524.96,0.00017534,2]
[396423074,1764964282644,-500.0,0.00017534,2]
[396423075,1764964282655,-500.0,0.00017534,2]
[396423076,1764964282664,-2060.56,0.00017534,2]
[396423077,1764964282674,-500.0,0.00017534,2]
[396423078,1764964282683,-500.0,0.00017534,2]
[396423079,1764964282693,-673.73,0.00017534,2]
[396423080,1764964282703,-701.23,0.00017534,2]
[396423081,1764964282712,-1698.62,0.00017534,2]
[396423082,1764964282722,-658.93,0.00017534,2]
[396423083,1764964282731,-500.0,0.00017534,2]
[396423084,1764964282741,-742.38,0.00017534,2]
[396423085,1764964282751,-747.63,0.00017534,2]
[396423086,1764964282760,-667.01,0.00017534,2]
[396423087,1764964282770,-500.0,0.00017534,2]
[396423088,1764964282781,-500.0,0.00017534,2]
[396423089,1764964282791,-500.0,0.00017534,2]
[396423090,1764964282800,-1151.69,0.00017534,2]
[396423091,1764964282810,-721.72,0.00017534,2]
[396423092,1764964282820,-500.0,0.00017534,2]